Cogmind - Beta 11 X8 @@@ ROGUE MODE // 2021.12.21 @ 14:21:34 Player: btmk16 Result: Self-destructed Performance ------------- Evolutions (5) 2500 Regions Visited (10) 2000 Robots Destroyed (168) 840 Value Destroyed (5987) 5987 Prototype IDs (21) 420 Alien Tech Used (0) 0 Bonus (612) 612 TOTAL SCORE: 12359 Bonus ------- High Alert Combat Kills 135 Follower Combat Kills 235 Met Data Miner 300 Friendly Fire -58 Cogmind --------- Core Integrity 657/1000 Matter 20/300 Energy 525/525 System Corruption 0% Temperature Warm (185) Movement Rolling (120) Ox2 Location -5/Factory Parts ------- > --- POWER (2) -------- Neutrino Core Reinforced Fission Core > --- PROPULSION (6) --- Enhanced Flexi-carbon Leg Wheel Compact Wheel > --- UTILITY (5) ------ Improved Heat Sink Medium Storage Unit Terrain Scanner Recoil Nullifier Focal Shield > --- WEAPON (4) ------- KE Penetrator Heavy Mass Driver > --- INVENTORY (10) --- Enhanced Nuclear Core Hardened Heavy Armor Plating Gauss Rifle Smartbomb Launcher Smartbomb Launcher Kinetic Spear Peak State ------------ > --- POWER ------------ Enhanced Nuclear Core Neutrino Core > --- PROPULSION ------- Improved Treads Enhanced Flexi-carbon Leg Enhanced Flexi-carbon Leg Wheel Wheel Wheel > --- UTILITY ---------- Advanced Heat Sink Huge Storage Unit Improved Core Analyzer Weapon Cycler Focal Shield > --- WEAPON ----------- Cooled Particle Cannon Precision Assault Rifle Kinetic Spear Kinetic Spear > --- INVENTORY -------- Enhanced Nuclear Core Light Angular Momentum Engine Improved Coolant Injector High-capacity Matter Pod Improved Trap Scanner Advanced Visual Processing Unit Improved Targeting Computer Improved Core Analyzer Matter Filter Kinecellerator Transmission Jammer Transmission Jammer Hardened Heavy Armor Plating Insulated Plating Improved Thermal Shield EM Shield Improved Shield Generator Hacking Suite Improved Hacking Suite Mini Grenade Launcher Smartbomb Launcher Smartbomb Launcher [Rating: 85] Favorites ----------- Power Enhanced Nuclear Core Engine Light Ion Engine Power Core Enhanced Nuclear Core Propulsion Armored Treads Treads Armored Treads Leg Enhanced Flexi-carbon Leg Wheel Wheel Utility Huge Storage Unit Device Structural Scanner Storage Huge Storage Unit Processor Improved Core Analyzer Protection Improved Light Armor Plating Weapon Enhanced Autogun Energy Gun Heavy Laser Energy Cannon Heavy Particle Cannon Ballistic Gun Enhanced Autogun Ballistic Cannon Mass Driver Launcher Mini Grenade Launcher Slashing Weapon Scythe Piercing Weapon Kinetic Spear Build | -11 -10 -9 -8 -7 -6 -6 -6 -6 -5 -5 ------- Run | Scr Mat Mat Mat Fac Fac Low Low Dat Pro Fac Slots Evolved 10 | . . 2 2 2 2 . . . . 2 Power 1 | . . . . . 1 . . . . . Propulsion 4 | . . . 2 1 1 . . . . . Utility 3 | . . . . 1 . . . . . 2 Weapon 2 | . . 2 . . . . . . . . Parts Attached 162 | . 8 14 31 13 29 7 10 . 20 30 Power 15 | . . 1 5 . 5 . . . 2 2 Engine 8 | . . 1 3 . 3 . . . 1 . Core 7 | . . . 2 . 2 . . . 1 2 Reactor . | . . . . . . . . . . . Propulsion 51 | . 3 3 14 6 8 . 3 . 5 9 Treads 30 | . 1 1 11 5 8 . 1 . 3 . Leg 4 | . . . . . . . 1 . 2 1 Wheel 17 | . 2 2 3 1 . . 1 . . 8 Hover . | . . . . . . . . . . . Flight . | . . . . . . . . . . . Utility 34 | . 2 . 3 3 7 3 1 . 6 9 Device 26 | . 1 . 2 3 5 2 1 . 5 7 Storage 2 | . 1 . . . . . . . . 1 Processor 1 | . . . . . . . . . . 1 Hackware . | . . . . . . . . . . . Protection 5 | . . . 1 . 2 1 . . 1 . Artifact . | . . . . . . . . . . . Weapon 62 | . 3 10 9 4 9 4 6 . 7 10 Energy Gun 8 | . . 1 . . 3 2 1 . 1 . Energy Cannon 4 | . . . . . 1 . 1 . 1 1 Ballistic Gun 34 | . 3 8 8 2 4 1 2 . 1 5 Ballistic Cannon 4 | . . . . . . . 2 . 1 1 Launcher 7 | . . . 1 2 . 1 . . 2 1 Special Weapon . | . . . . . . . . . . . Impact Weapon . | . . . . . . . . . . . Slashing Weapon 3 | . . 1 . . 1 . . . 1 . Piercing Weapon 2 | . . . . . . . . . . 2 Special Melee Weapon . | . . . . . . . . . . . Unidentified Prototypes 11 | . . 2 1 . 2 . . . 2 4 Parts Lost 53 | . 1 . 9 2 5 . 9 . 17 10 Power 6 | . . . 2 . 2 . . . 2 . Propulsion 21 | . 1 . 4 1 . . 5 . 5 5 Utility 11 | . . . . . 2 . 1 . 5 3 Weapon 15 | . . . 3 1 1 . 3 . 5 2 Highest Loss Streak 10 | . 1 . 4 2 2 . 5 . 10 4 Average Slot Usage (%) 93 | . 97 100 98 95 96 100 91 86 77 87 Engine 4 | . 14 11 6 . 8 . . . 2 1 Core 6 | . . . 2 7 3 13 13 13 8 8 Treads 20 | . 1 11 18 22 36 40 25 13 11 2 Leg 2 | . 3 . . . . . 1 6 6 10 Wheel 8 | . 22 11 16 10 1 . 3 6 4 12 Device 11 | . 5 11 8 15 11 12 12 13 11 18 Storage 7 | . 20 11 9 7 6 6 6 6 6 4 Energy Gun 2 | . . . . . 3 5 5 . 2 2 Energy Cannon 1 | . . . . . . . 2 6 3 4 Ballistic Gun 21 | . 27 44 35 29 20 20 16 6 5 6 Ballistic Cannon 1 | . . . . . . . 1 13 8 1 Naked Turns . | . . . . . . . . . . . Heaviest Build 134 | 10 92 96 105 105 120 118 134 134 134 123 Greatest Support 136 | 20 20 16 62 28 136 136 136 28 56 56 Greatest Overweight (x) 11 | . 8 9 6 5 4 . 4 4 4 11 Average Overweight (x) 2 | . 3 5 3 4 . . 2 4 3 2 Largest Inventory Capacity 25 | . 25 25 25 25 25 25 25 25 25 25 Average Capacity 24 | . 22 25 25 25 25 25 25 25 25 20 Most Carried 25 | . 18 25 25 25 25 25 25 25 25 25 Average Carried 22 | . 13 23 24 24 24 25 23 25 23 18 Final Capacity 25 | 8 25 25 25 25 25 25 25 25 25 10 Final Carried 25 | 6 18 25 25 25 25 25 25 25 21 9 Class Distribution -------------------- 30% | Scavenger-Tank 24% | Scavenger-Skirmisher 12% | Scavenger-Gunner 12% | Skirmisher 11% | Scavenger-Mutant 7% | Mutant Dominant Class ---------------- Mutant | -10/Materials Skirmisher | -9/Materials Scavenger-Skirmisher | -8/Materials Scavenger-Gunner | -7/Factory Scavenger-Tank | -6/Factory Scavenger-Skirmisher | -6/Lower Caves Scavenger-Tank | -6/Lower Caves Scavenger-Tank | -6/Data Miner Scavenger-Tank | -5/Proximity Caves Scavenger-Mutant | -5/Factory Resources | -11 -10 -9 -8 -7 -6 -6 -6 -6 -5 -5 ----------- Run | Scr Mat Mat Mat Fac Fac Low Low Dat Pro Fac Matter Collected 5800 | 200 248 643 1078 583 974 267 280 . 916 611 Remotely . | . . . . . . . . . . . Salvage Created 7351 | . 290 652 1338 750 1774 343 352 . 858 994 Parts 394 | . 26 46 74 36 91 23 9 . 34 55 Haulers Intercepted 10 | . 1 2 4 . 2 . . . . 1 Recyclers Shooed 2 | . . . . . 1 . . . . 1 Parts Field Recycled . | . . . . . . . . . . . Retrieved Matter . | . . . . . . . . . . . Parts Self-Destructed 54 | . . . . . . 23 8 . 23 . Prevented . | . . . . . . . . . . . Kills | -11 -10 -9 -8 -7 -6 -6 -6 -6 -5 -5 ------- Run | Scr Mat Mat Mat Fac Fac Low Low Dat Pro Fac Combat Hostiles Destroyed 145 | . 9 13 21 28 21 13 5 . 24 11 Guns 98 | . 9 13 19 14 19 9 4 . 5 6 Cannons 17 | . . . . . 2 . 1 . 10 4 AOE 29 | . . . 2 14 . 4 . . 8 1 Classes Destroyed 17 | . 4 4 3 3 1 1 1 . . . Worker 11 | . 1 2 2 . 1 . . . . 5 Builder 8 | . . 1 1 . 2 . . . . 4 Hauler 10 | . 1 2 4 . 2 . . . . 1 Recycler 7 | . . 1 2 . 3 . . . . 1 Watcher 1 | . . 1 . . . . . . . . Swarmer 36 | . 6 8 3 . 3 11 . . 5 . Grunt 48 | . 3 . 13 10 7 . 3 . 8 4 Brawler 4 | . . . . . . 1 1 . 2 . Duelist 3 | . . . 1 . 1 . . . 1 . Sentry 11 | . . 5 1 1 1 1 . . 2 . Demolisher 2 | . . . . 2 . . . . . . Specialist 6 | . . . 2 . 4 . . . . . Hunter 11 | . . . . 1 2 . . . 2 6 Programmer 1 | . . . . . 1 . . . . . Heavy 4 | . . . 1 . 2 . . . . 1 Behemoth 1 | . . . . . . . 1 . . . Assembled 14 | . . . . 14 . . . . . . Thug 3 | . . . . . . . . . 3 . Savage 1 | . . . . . . . . . 1 . Best Kill Streak 16 | . 3 6 7 16 5 7 4 . 7 5 Combat Bots Only 16 | . 3 5 6 16 4 7 4 . 7 3 Max Kills in Single Turn 4 | . 2 3 3 4 2 2 2 . 3 1 Gunslinging 2 | . 1 2 . 1 1 1 1 . . . Exploded 4 | . . . 2 4 . 2 . . 3 1 Melee . | . . . . . . . . . . . Uniques/NPCs Destroyed . | . . . . . . . . . . . Combat | -11 -10 -9 -8 -7 -6 -6 -6 -6 -5 -5 -------- Run | Scr Mat Mat Mat Fac Fac Low Low Dat Pro Fac Damage Taken 11150 | . 257 306 1625 860 1519 482 1309 . 2718 2074 Core 1412 | . 47 44 217 62 135 85 43 . 436 343 Absorbed by Shields 562 | . . . . . 69 126 117 . 250 . Core Remaining (%) 73 | 100 81 89 60 91 . . . . 17 . Volleys Fired 397 | . 37 21 65 45 63 18 21 . 64 63 Largest 4 | . 2 4 4 4 4 4 4 . 4 4 Hottest 219 | . 40 105 100 100 153 158 199 . 219 201 Shots Fired 1289 | . 74 84 257 151 235 63 84 . 174 167 Gun 1090 | . 74 84 255 142 227 59 81 . 66 102 Cannon 174 | . . . . . 8 1 3 . 101 61 Launcher 25 | . . . 2 9 . 3 . . 7 4 Special . | . . . . . . . . . . . Kinetic 1082 | . 74 83 255 142 189 45 60 . 133 101 Thermal 181 | . . . . . 46 15 24 . 34 62 Explosive 25 | . . . 2 9 . 3 . . 7 4 Electromagnetic 1 | . . 1 . . . . . . . . Robot Hit Streak 31 | . 8 11 11 10 25 8 31 . 10 12 Robot Miss Streak 5 | . 5 4 5 4 5 5 5 . 3 4 Penetration Max 1 | . . . . . . . . . 1 1 Secondary Targets 30 | . 2 5 9 3 5 5 1 . . . Max Gunslinging Chain 2 | . 1 2 1 2 2 2 1 . . . Shots Hit Robots 805 | . 40 45 164 97 156 33 70 . 104 96 Core Hits 363 | . 15 28 57 59 72 20 15 . 52 45 Critical Kills 4 | . . . . 1 . 1 . . 1 1 Critical Parts Destroyed 4 | . . . . 1 . . . . 2 1 Critical Strikes 18 | . . . . 2 3 1 3 . 6 3 Burn 6 | . . . . . 3 . 3 . . . Meltdown 1 | . . . . . . . . . . 1 Destroy 7 | . . . . 2 . 1 . . 3 1 Blast 4 | . . . . . . . . . 3 1 Melee Attacks 9 | . . 1 . . 7 . . . . 1 Impact . | . . . . . . . . . . . Slashing 8 | . . 1 . . 7 . . . . . Piercing 1 | . . . . . . . . . . 1 Sneak Attacks 2 | . . . . . 1 . . . . 1 Combat Hostiles . | . . . . . . . . . . . Follow-up Attacks . | . . . . . . . . . . . Damage Inflicted 19428 | . 527 802 3047 2625 3341 899 1513 . 3792 2882 Guns 13221 | . 527 802 2838 1629 2963 613 1463 . 1079 1307 Cannons 3464 | . . . . . 150 25 50 . 2100 1139 Explosions 2512 | . . . 209 996 137 261 . . 613 296 Melee 210 | . . . . . 91 . . . . 119 Ramming 21 | . . . . . . . . . . 21 Kinetic 13876 | . 527 790 2838 1629 2275 421 1085 . 2672 1639 Thermal 2934 | . . . . . 975 217 428 . 507 807 Explosive 2375 | . . . 209 996 . 261 . . 613 296 Electromagnetic 12 | . . 12 . . . . . . . . Impact . | . . . . . . . . . . . Slashing 91 | . . . . . 91 . . . . . Piercing 119 | . . . . . . . . . . 119 Highest Corruption 4 | . . . 4 . . . . . . . Average Corruption 2 | . . . 2 . . . . . . . Corruption Purged . | . . . . . . . . . . . Effects 11 | . . . 11 . . . . . . . Message Errors 5 | . . . 5 . . . . . . . Matter Fused 1 | . . . 1 . . . . . . . Energy Discharges 4 | . . . 4 . . . . . . . Data Loss (minor) 1 | . . . 1 . . . . . . . Overload Shots 2 | . . . . . . . . . . 2 Overflow Damage 296 | . . . . 10 28 . . . 29 229 Projectiles 144 | . . . . . . . . . 4 140 Explosions 63 | . . . . 10 28 . . . 25 . Melee 89 | . . . . . . . . . . 89 Knockbacks 17 | . . . . . . . . . 13 4 Impact . | . . . . . . . . . . . Kinetic 16 | . . . . . . . . . 12 4 Secondary 1 | . . . . . . . . . 1 . Self-Inflicted Damage 338 | . . . . 59 31 56 . . 182 10 Shots 13 | . . . . 5 1 2 . . 5 . Rammed 2 | . . . . . . . . . . 2 Targets Rammed 2 | . . . . . . . . . . 2 Kicked . | . . . . . . . . . . . Crushed . | . . . . . . . . . . . Highest Temperature 497 | . . 67 368 189 346 72 219 . 497 490 Average Temperature 105 | . . 20 96 73 78 19 41 . 172 155 Received Heat Transfer 2787 | . 72 54 567 215 294 24 288 . 895 378 Effects 11 | . . . 1 . . . . . 3 7 Shutdowns 4 | . . . . . . . . . . 4 Energy Bleed 3 | . . . 1 . . . . . 2 . Interference 1 | . . . . . . . . . . 1 Matter Decay 1 | . . . . . . . . . . 1 Damage (minor) 2 | . . . . . . . . . 1 1 Siege Activations . | . . . . . . . . . . . Robots Corrupted . | . . . . . . . . . . . Combat Hostiles . | . . . . . . . . . . . Parts Fried . | . . . . . . . . . . . Impact Corruptions . | . . . . . . . . . . . Robots Melted 2 | . . . . . . . . . 1 1 Combat Hostiles 1 | . . . . . . . . . 1 . Parts Melted 3 | . . . . . . 1 . . . 2 Heat Transferred 4838 | . . . . . 1593 407 999 . 740 1099 Parts Sabotaged . | . . . . . . . . . . . Parts Stolen . | . . . . . . . . . . . Parts Stripped . | . . . . . . . . . . . Power Chain Reactions . | . . . . . . . . . . . Missiles Intercepted . | . . . . . . . . . . . Alert | -11 -10 -9 -8 -7 -6 -6 -6 -6 -5 -5 ------- Run | Scr Mat Mat Mat Fac Fac Low Low Dat Pro Fac Peak Influence 620 | . 184 338 386 340 620 . . . . 249 Initial 166 | . . 77 142 102 166 . . . . 74 Average 192 | . 79 220 276 151 227 . . . . 120 Maximum Alert Level 2 | . . 1 1 1 2 . . . . 1 Low Security (%) 55 | . 100 30 17 84 46 . . . . 87 Level 1 39 | . . 69 82 15 34 . . . . 12 Level 2 4 | . . . . . 18 . . . . . Level 3 . | . . . . . . . . . . . Level 4 . | . . . . . . . . . . . Level 5 . | . . . . . . . . . . . High Security . | . . . . . . . . . . . Max Security . | . . . . . . . . . . . Squads Dispatched 19 | . 2 1 2 1 7 . . . 1 5 Investigation 1 | . . . . . . . . . . 1 Extermination 2 | . . . . . 1 . . . . 1 Reinforcement 15 | . 2 1 2 1 6 . . . . 3 Assault 1 | . . . . . . . . . 1 . Garrison . | . . . . . . . . . . . Intercept . | . . . . . . . . . . . Construction Impeded 1 | . . . . . . . . . . 1 Haulers Reinforced 2 | . . . . . 1 . . . . 1 Active Scanning Responses . | . . . . . . . . . . . Cargo Convoy Interrupts 1 | . . . . . 1 . . . . . Stealth | -11 -10 -9 -8 -7 -6 -6 -6 -6 -5 -5 --------- Run | Scr Mat Mat Mat Fac Fac Low Low Dat Pro Fac Distress Signals 7 | . 1 1 3 . 1 . . . . 1 Communications Jammed 7 | . . . . . . . . . . 7 Distress Signals 6 | . . . . . . . . . . 6 Times Spotted 202 | . 19 21 33 31 23 15 5 . 33 22 Peak Tracking Total 9 | . 4 6 7 9 5 7 4 . 8 9 Tactical Retreats 9 | . . 1 2 1 1 2 . . . 2 Traps | -11 -10 -9 -8 -7 -6 -6 -6 -6 -5 -5 ------- Run | Scr Mat Mat Mat Fac Fac Low Low Dat Pro Fac Traps Triggered 6 | . 1 . 4 1 . . . . . . Indirectly . | . . . . . . . . . . . Trap Hack Attempts . | . . . . . . . . . . . Triggered . | . . . . . . . . . . . Disarmed . | . . . . . . . . . . . Reprogrammed . | . . . . . . . . . . . Reused . | . . . . . . . . . . . Traps Extracted . | . . . . . . . . . . . Installed . | . . . . . . . . . . . Triggered 1 | . . . . . 1 . . . . . Machines | -11 -10 -9 -8 -7 -6 -6 -6 -6 -5 -5 ---------- Run | Scr Mat Mat Mat Fac Fac Low Low Dat Pro Fac Machines Disabled 11 | . . . 1 . 7 . . . 2 1 Max in Single Turn 3 | . . . 1 . 3 . . . 1 1 Machines Sabotaged . | . . . . . . . . . . . Garrisons Compromised 1 | . . . . . 1 . . . . . Overloaded Fab Kills . | . . . . . . . . . . . Hacking | -11 -10 -9 -8 -7 -6 -6 -6 -6 -5 -5 --------- Run | Scr Mat Mat Mat Fac Fac Low Low Dat Pro Fac Machines Accessed 18 | . 3 3 3 1 2 . 1 4 . 1 Terminals 11 | . 3 3 3 . 2 . . . . . Fabricators 2 | . . . . 1 . . . . . 1 Repair Stations . | . . . . . . . . . . . Recycling Units . | . . . . . . . . . . . Scanalyzers . | . . . . . . . . . . . Garrison Access . | . . . . . . . . . . . Total Hacks 59 | . 5 6 7 3 5 . 1 30 . 2 Successful 42 | . 3 1 5 1 1 . 1 30 . . Failed 17 | . 2 5 2 2 4 . . . . 2 Catastrophic 5 | . . 3 1 . 1 . . . . . Database Lockouts . | . . . . . . . . . . . Manual 20 | . 4 3 6 3 2 . . . . 2 Terminals 23 | . 5 6 7 . 5 . . . . . Fabricators 5 | . . . . 3 . . . . . 2 Repair Stations . | . . . . . . . . . . . Recycling Units . | . . . . . . . . . . . Scanalyzers . | . . . . . . . . . . . Garrison Access . | . . . . . . . . . . . Terminal Hacks 40 | . 2 1 5 . 1 . 1 30 . . Record 11 | . . . . . . . . 11 . . Part Schematic 11 | . . . . . . . . 11 . . Robot Schematic 5 | . . . . . . . . 5 . . Robot Analysis 3 | . 1 . 2 . . . . . . . Prototype ID Bank 3 | . . . . . . . . 3 . . Open Door 1 | . . . . . . . 1 . . . Alert Level 4 | . . 1 2 . 1 . . . . . Unreport Threat 1 | . . . 1 . . . . . . . Hauler Manifests 1 | . 1 . . . . . . . . . Fabricator Hacks . | . . . . . . . . . . . Repair Station Hacks . | . . . . . . . . . . . Recycling Unit Hacks . | . . . . . . . . . . . Scanalyzer . | . . . . . . . . . . . Garrison Access Hacks . | . . . . . . . . . . . Unauthorized Hacks 2 | . 1 . . 1 . . . . . . Terminals 1 | . 1 . . . . . . . . . Botnet 1 | . 1 . . . . . . . . . Fabricators 1 | . . . . 1 . . . . . . Fabnet 1 | . . . . 1 . . . . . . Repair Stations . | . . . . . . . . . . . Recycling Units . | . . . . . . . . . . . Scanalyzers . | . . . . . . . . . . . Garrison Access . | . . . . . . . . . . . Data Cores Recovered . | . . . . . . . . . . . Used . | . . . . . . . . . . . Hacking Detections 12 | . 2 3 3 1 2 . . . . 1 Full Trace Events 1 | . . . . . . . . . . 1 Feedback Events . | . . . . . . . . . . . Feedback Blocked . | . . . . . . . . . . . Robot Schematics Acquired 5 | . . . . . . . . 5 . . Robots Built . | . . . . . . . . . . . Authchips . | . . . . . . . . . . . Time . | . . . . . . . . . . . Total Robot Build Rating . | . . . . . . . . . . . Part Schematics Acquired 11 | . . . . . . . . 11 . . Parts Built . | . . . . . . . . . . . Authchips . | . . . . . . . . . . . Time . | . . . . . . . . . . . Total Part Build Rating . | . . . . . . . . . . . Parts Repaired . | . . . . . . . . . . . Time . | . . . . . . . . . . . Parts Recycled . | . . . . . . . . . . . Recycled Matter . | . . . . . . . . . . . Retrieved Matter . | . . . . . . . . . . . Retrieved Components . | . . . . . . . . . . . Parts Scanalyzed . | . . . . . . . . . . . Part Schematics Acquired . | . . . . . . . . . . . Parts Damaged . | . . . . . . . . . . . Bothacking | -11 -10 -9 -8 -7 -6 -6 -6 -6 -5 -5 ------------ Run | Scr Mat Mat Mat Fac Fac Low Low Dat Pro Fac Used RIF Installer . | . . . . . . . . . . . Robots Hacked 2 | . . . . . 1 . . . . 1 Non-combat . | . . . . . . . . . . . Combat 2 | . . . . . 1 . . . . 1 Robot Hacks Applied . | . . . . . . . . . . . Relay Couplers Released . | . . . . . . . . . . . Fabnet Peak Effective % 3 | . . . . . 3 3 3 3 1 1 Autooverrided 2 | . . . . . 1 . . . . 1 Robots Rewired 3 | . . . . . . . . . 3 . Allies Hacked . | . . . . . . . . . . . Hacks Repelled . | . . . . . . . . . . . Allies | -11 -10 -9 -8 -7 -6 -6 -6 -6 -5 -5 -------- Run | Scr Mat Mat Mat Fac Fac Low Low Dat Pro Fac Total Allies 6 | . . . . . 1 . . . 4 1 Largest Group 2 | . . . . . 1 . . . 2 1 Highest-Rated Group 120 | . . . . . 41 . . . 120 29 Highest-Rated Ally 95 | . . . . . 41 . . . 95 29 Total Orders . | . . . . . . . . . . . Ally Attacks 55 | . . . . . 2 . . . 50 3 Total Damage 1811 | . . . . . 177 . . . 1596 38 Kills 9 | . . . . . 3 . . . 6 . Allies Corrupted . | . . . . . . . . . . . Allies Melted . | . . . . . . . . . . . Intel | -11 -10 -9 -8 -7 -6 -6 -6 -6 -5 -5 ------- Run | Scr Mat Mat Mat Fac Fac Low Low Dat Pro Fac Robot Analysis Total 3 | . 1 . 2 . . . . . . . Derelict Logs Recovered 6 | . . . . . . 1 2 . 3 . Drone Launches . | . . . . . . . . . . . Drone Recoveries . | . . . . . . . . . . . Exploration | -11 -10 -9 -8 -7 -6 -6 -6 -6 -5 -5 ------------- Run | Scr Mat Mat Mat Fac Fac Low Low Dat Pro Fac Turns Passed 8600 | . 590 766 1094 673 1256 1364 642 136 1186 893 Spaces Moved 4379 | 1 316 360 569 363 603 778 324 86 554 425 Core . | . . . . . . . . . . . Treads 1327 | . . . 32 . 419 778 98 . . . Legs 228 | 1 51 . . . . . . . 73 103 Wheels 2824 | . 265 360 537 363 184 . 226 86 481 322 Hover . | . . . . . . . . . . . Flight . | . . . . . . . . . . . Fastest Speed 80 | 120 120 175 135 145 145 166 160 160 145 80 Average Speed 159 | 120 141 179 147 150 160 166 167 160 171 150 Slowest Speed 260 | 120 200 215 235 155 166 166 247 160 260 260 Overloaded Moves . | . . . . . . . . . . . Propulsion Burnouts . | . . . . . . . . . . . Robots Hopped . | . . . . . . . . . . . Cave-ins Triggered . | . . . . . . . . . . . Exploration Rate (%) 43 | 2 64 34 57 11 17 89 47 70 79 10 Regions Visited 10 Branch Regions 4 Pre-discovered Areas 3 | . . . . . . . 1 1 1 . Known Exits Taken . | . . . . . . . . . . . Unknown Exits Taken 10 | 1 1 1 1 1 1 1 1 1 1 . Scrap Searched 9 | . . . . . . 3 2 . 4 . Spaces Dug 20 | . . 1 . . 6 6 . . 7 . Terrain Destroyed 248 | . . 1 . 54 49 24 2 . 81 37 Melee 7 | . . 1 . . 6 . . . . . Projectile 78 | . . . . 2 1 7 2 . 46 20 AOE 163 | . . . . 52 42 17 . . 35 17 Terrain Rammed . | . . . . . . . . . . . Walls Destroyed . | . . . . . . . . . . . Machines Disabled . | . . . . . . . . . . . Actions | -11 -10 -9 -8 -7 -6 -6 -6 -6 -5 -5 --------- Run | Scr Mat Mat Mat Fac Fac Low Low Dat Pro Fac Total 5311 | . 385 440 730 459 800 811 374 85 662 565 Wait 138 | . 10 8 21 12 57 5 10 . 3 12 Move 4369 | . 315 359 568 362 602 777 323 85 553 425 Hop . | . . . . . . . . . . . Pick Up 102 | . 12 17 18 13 17 . 7 . 7 11 Fast Attach 48 | . 2 2 7 1 5 . 3 . 9 19 Attach 39 | . 2 2 9 4 8 . 6 . 7 1 Detach 8 | . 1 2 1 . . . . . 1 3 Swap 76 | . 4 10 16 8 16 7 1 . 4 10 Drop 111 | . 2 18 25 14 25 1 3 . 5 18 Fire 397 | . 37 21 65 45 63 18 21 . 64 63 Melee 9 | . . 1 . . 7 . . . . 1 Ram 2 | . . . . . . . . . . 2 Kick . | . . . . . . . . . . . Crush . | . . . . . . . . . . . Escape Stasis . | . . . . . . . . . . . Rewire 12 | . . . . . . 3 . . 9 . Trap . | . . . . . . . . . . . Miscellaneous . | . . . . . . . . . . . Route ------- -11/Scrapyard -10/Materials (discovered 4 exits: *Mat x2 / [*Min x2]) -9/Materials -8/Materials -7/Factory -6/Factory -6/Lower Caves -6/Lower Caves -6/Data Miner -5/Proximity Caves -5/Factory (discovered 3 exits: Fac x2 / Upp) History --------- Turn | Location | Event 1 | -11/Scrapyard | Discovered new exit (range 0) 1 | -11/Scrapyard | Entered Materials 113 | -10/Materials | Discovered new exit (range 16) 236 | -10/Materials | Discovered new exit (range 7) 300 | -10/Materials | Build established: Mutant 409 | -10/Materials | Discovered new exit (range 6) 550 | -10/Materials | Discovered new exit (range 15) 591 | -10/Materials | Entered another Materials area 591 | -9/Materials | Evolved 2 slots: Weapon x2 880 | -9/Materials | Build established: Skirmisher 1254 | -9/Materials | Discovered new exit (range 15) 1357 | -9/Materials | Entered another Materials area 1357 | -8/Materials | Evolved 2 slots: Propulsion x2 1660 | -8/Materials | Build established: Scavenger-Skirmisher 1976 | -8/Materials | Lost 4 parts (1p1n2w) 2408 | -8/Materials | Discovered new exit (range 16) 2435 | -8/Materials | Build established: Scavenger-Gunner 2451 | -8/Materials | Entered Factory 2451 | -7/Factory | Evolved 2 slots: Propulsion x1, Utility x1 2908 | -7/Factory | Assembled infested ambush trap array 2983 | -7/Factory | Destroyed 16 combat bots 3023 | -7/Factory | Discovered new exit (range 15) 3124 | -7/Factory | Entered another Factory area 3124 | -6/Factory | Evolved 2 slots: Power x1, Propulsion x1 3984 | -6/Factory | Build established: Scavenger-Mutant 4021 | -6/Factory | Cargo convoy interrupted 4301 | -6/Factory | Discovered new exit (range 13) 4317 | -6/Factory | Build established: Scavenger-Tank 4380 | -6/Factory | Entered Lower Caves 4425 | -6/Lower Caves | Destroyed 7 combat bots 4894 | -6/Lower Caves | Build established: Scavenger-Skirmisher 5180 | -6/Lower Caves | Attracted the attention of an 0b10 checkpoint 5268 | -6/Lower Caves | Encountered a Warlord checkpoint 5703 | -6/Lower Caves | Discovered new exit (range 15) 5716 | -6/Lower Caves | Learned location of 1 exit from Factory 5744 | -6/Lower Caves | Entered another Lower Caves area 5854 | -6/Lower Caves | Spotted B-75 Beast 5911 | -6/Lower Caves | Destroyed B-75 Beast 5941 | -6/Lower Caves | Lost 5 parts (3n1u1w) 6019 | -6/Lower Caves | Learned location of 1 exit from Factory 6197 | -6/Lower Caves | Lost 4 parts (2n2w) 6218 | -6/Lower Caves | Build established: Scavenger-Tank 6372 | -6/Lower Caves | Discovered new exit (range 10) 6386 | -6/Lower Caves | Entered Data Miner 6386 | -6/Data Miner | Discovered new exit (range 6) 6417 | -6/Data Miner | Met Data Miner 6450 | -6/Data Miner | Learned location of Section 7 (-3) 6450 | -6/Data Miner | Acquired the access code to Warlord's prototype stash 6482 | -6/Data Miner | Received God Mode back door access code from Data Miner 6522 | -6/Data Miner | Entered Proximity Caves 6560 | -5/Proximity Caves | Escorted by Enhanced Grunt 6586 | -5/Proximity Caves | Attacked by a faux Warlord 6732 | -5/Proximity Caves | Learned 12 Factory zone layouts 6773 | -5/Proximity Caves | Learned location of 1 exit from Upper Caves 7097 | -5/Proximity Caves | Attracted the attention of an 0b10 outpost 7108 | -5/Proximity Caves | Core integrity fell below 50% 7170 | -5/Proximity Caves | Destroyed 7 combat bots 7178 | -5/Proximity Caves | Lost 10 parts (2p3n2u3w) 7395 | -5/Proximity Caves | Learned location of Armory (-3) 7494 | -5/Proximity Caves | Attracted the attention of an 0b10 checkpoint 7500 | -5/Proximity Caves | Core integrity fell below 20% 7560 | -5/Proximity Caves | Lost 3 parts (1n2w) 7648 | -5/Proximity Caves | Discovered new exit (range 10) 7708 | -5/Proximity Caves | Entered Factory 7708 | -5/Factory | Evolved 2 slots: Utility x2 7709 | -5/Factory | Identified exit to Upper Caves 7709 | -5/Factory | Identified exit to Factory 7814 | -5/Factory | Build established: Scavenger-Mutant 8218 | -5/Factory | Lost 3 parts (3n) 8582 | -5/Factory | Build established: Scavenger-Tank 8601 | -5/Factory | Self-destructed Last Messages --------------- 08561_ Dropped Flexi-carbon Leg. 08580_ W-25 Informer distress signal jammed. 08583_ Acquired 62 matter. 08583_ Wheel destroyed. 08584_ W-25 Informer distress signal jammed. 08584_ Acquired 19 matter. 08585_ Slug penetrates G-50 Soldier. 08585_ G-50 Soldier knocked back. 08587_ Imp. Transmission Jammer destroyed. 08590_ Slug penetrates K-01 Serf. 08590_ K-01 Serf destroyed. 08590_ Destroyed Lgt. Angular Momentum Engine. 08590_ G-50 Soldier knocked back. 08591_ K-01 Serf collects debris. 08594_ Slug penetrates Wall. 08594_ K-01 Serf collects debris. 08597_ Slug penetrates G-50 Soldier. 08599_ K-01 Serf collects debris. 08599_ Prc. Assault Rifle destroyed. 08601_ Wheel destroyed. Map ----- +----------------------------------------------------+ | ?????????????????????????????????????????? | | ??????????????????????????????????????????? | | ???????#######??#????????????????#???????????? | | ???????# ? #?????????????????????#????????# | | ?? #???# # """ #?????# # | | ?? #???# """ # """ #??#??# # | | ?? #???# """ # #?????# # | | ?? #???# """ # """ """ #?????# # | | ?? #???# # """ """ #?#???# # | | ??##???# "# """ """ #??#??# # | | ??###### !%""# #?????# # | | # [""# #?????############# | | + ""##################?# | | # ! ""# = ### | | ? # ! T"# """ == + " = | | ? # *""# """ == ## " !=! | | # ! !!""# """ ## " !! | | # ## !!!/""# "" "" ## " !! ##### | | # ##%]!!=!/ # ""S"" ## " #???# | | # ## !| * !!#* """" ## " """ ##### | | # ## !!!|!!###+###+########### " """ # | | # #######+##### w " " # | | # #???#!# " "F" # | | # #??## # g """ # | | # #??# # k gg######+## # | | # #######k =@## # # | | # ! % % ##""" # ########## | | # ! ! ##""" # # | | % """" ! ] ##""" # # | | % % """" !] #???????# #????????? | | % % """"" % ]] #?"???? # #????????? | | # % """" g #???????# #????????? | | # g #?"?????# #????????? | | # % ## ? ???# +????????? | | g #???????# #????????? | | #???"???# #????????? | | ###+####### #?????? # #????????? | | ?? #?# #???????# #????????? | | ?? #?# #########???????# +????????? | | ?? #?# #???????????????? ?????????? | | ??"""" #?# #??????????????????????????????? | | ??"""" #?# #???????????????????+##????????? | | ??"""" ### #??????????????????? ????????? | | ??"""" + #??############## ?????? | | ?? # #??# #?""" """??????? | | #####+### #### #?""" """??????? | | + #??"" ""???????? | | ##+#### #?? ???????? | | # # #??? ????????? | | + # #??? ????????? | +----------------------------------------------------+ Best States ------------- Heat Dissipation 64 Energy Generation 33 Energy Capacity 525 Matter Stores 300 Matter Capacity 300 Sight Range 16 Terrain Scan Range 14 Terrain Scan Density 10 Jamming Range 12 Armor Coverage 225 Resistance: KI 20 Resistance: EM 25 Weapon Cycling 20 Evasion (%) 55 Core Analysis 8 Recoil Reduction 6 Kinecelleration 30 Authchip Count 1 Item Schematics ----------------- Combat Drone Bay | -6/Data Miner | Free Lgt. Regenerative Plating | -6/Data Miner | Free Enh. Armored Leg | -6/Data Miner | Free Imp. Matter Compressor | -6/Data Miner | Free Enh. Force Rifle | -6/Data Miner | Free Imp. Heavy Treads | -6/Data Miner | Free Adv. Hardlight Generator | -6/Data Miner | Free Hvy. Disruptor Cannon | -6/Data Miner | Free Adv. Target Analyzer | -6/Data Miner | Free Hardcell Cannon | -6/Data Miner | Free Adv. Recalibrator | -6/Data Miner | Free Robot Schematics ------------------ L-41 Fighter | -6/Data Miner | Free P-60 Hacker | -6/Data Miner | Free Y-64 Sentinel | -6/Data Miner | Free B-60 Warrior | -6/Data Miner | Free A-27 Freighter | -6/Data Miner | Free Fabricated ------------ Nothing Alien Tech Used ----------------- None Achievements -------------- None Challenges ------------ None Game ------ Seed AbsorptionParticleWell Manual? 0 Play Time 01:06:01 Cumulative 207.8 hours Start 2021.12.21 @ 12:57:43 End 2021.12.21 @ 14:21:34 Sessions 1 Manual Loads 0 Difficulty Rogue Special Mode None Game No. 278 Rogue 278 Adventurer 0 Explorer 0 Win Type - Total 2 Types 2/0/0/0/0/0/0/0/0 Lore% 62 Gallery% 75 Achievement% 54 Wizard Run 0 Options --------- ASCII 0 Keyboard 1 Movement Vi Keybinds 0 Fullscreen 1 Font 18/SmallcapsGlow Map View 76x50 Tactical HUD 1 Map Filters NONE Filters NONE Steam 1 RUN: ab957d0c-1d75-4b98-9756-57c008a8b89b